bitfinex-derivatives/quotes_BTCF0:USTF0_20251225
["timestamp","ask_amount","ask_price","bid_price","bid_amount"]
[1766637316081,0.04096127,87847.0,87829.0,0.0113936]
[1766637316382,0.05528,87849.0,87832.0,0.0113933]
[1766637316580,0.05528,87849.0,87832.0,0.0413933]
[1766637317282,0.0113909,87851.0,87832.0,0.0413933]
[1766637317577,0.057,87850.0,87832.0,0.03]
[1766637317882,0.0113914,87847.0,87832.0,0.03]
[1766637320487,0.068391,87850.0,87832.0,0.03]
[1766637320987,0.0113913,87848.0,87832.0,0.03]
[1766637325586,0.0113915,87846.0,87832.0,0.03]
[1766637331690,0.0113918,87844.0,87832.0,0.03]
[1766637332097,0.04096127,87848.0,87832.0,0.03]
[1766637332294,0.068391,87850.0,87832.0,0.03]
[1766637333193,0.057,87850.0,87832.0,0.03]
[1766637333393,0.057,87850.0,87833.0,0.0113931]
[1766637333602,0.057,87850.0,87833.0,0.0413931]
[1766637336796,0.04096127,87852.0,87833.0,0.0413931]
[1766637337097,0.057,87851.0,87833.0,0.03]
[1766637337697,0.057,87850.0,87833.0,0.03]
[1766637338395,0.057,87850.0,87833.0,0.0413931]
[1766637340500,0.057,87849.0,87833.0,0.0413931]
[1766637342203,0.0113906,87853.0,87833.0,0.0413931]
[1766637342500,0.057,87852.0,87833.0,0.0413931]
[1766637343703,0.0113909,87851.0,87833.0,0.03]
[1766637343904,0.057,87852.0,87833.0,0.0413931]
[1766637349413,0.057,87852.0,87833.0,0.03]
[1766637351401,0.0113917,87845.0,87833.0,0.03]
[1766637351713,0.0113916,87846.0,87833.0,0.03]
[1766637355117,0.09796127,87852.0,87833.0,0.03]
[1766637355917,0.0113913,87848.0,87833.0,0.03]
[1766637356610,0.09796127,87852.0,87833.0,0.03]
[1766637357623,0.0113916,87846.0,87833.0,0.03]
[1766637361920,0.0113918,87844.0,87833.0,0.03]
[1766637362120,0.0113921,87842.0,87826.0,0.057]
[1766637362322,0.0113925,87839.0,87826.0,0.067]
[1766637363027,0.011392,87843.0,87826.0,0.067]
[1766637363215,0.0113922,87841.0,87826.0,0.067]
[1766637363519,0.0113918,87844.0,87826.0,0.067]
[1766637363822,0.0113921,87842.0,87826.0,0.067]
[1766637364117,0.0113921,87842.0,87822.0,8.3e-07]
[1766637364118,0.02524,87842.0,87822.0,8.3e-07]
[1766637364317,0.02524,87842.0,87816.0,0.0113953]
[1766637364318,0.02524,87842.0,87813.0,0.057]
[1766637364621,0.02524,87842.0,87813.0,0.087]
[1766637364823,0.011394,87827.0,87813.0,0.03]
[1766637365318,0.0113939,87828.0,87813.0,0.03]
[1766637365623,0.00017083,87829.0,87813.0,0.0413957]
[1766637370128,0.0113939,87828.0,87813.0,0.03]
[1766637370324,0.00017083,87829.0,87813.0,0.03]
[1766637370527,0.0113943,87825.0,87813.0,0.03]
[1766637371329,0.00017083,87829.0,87813.0,0.03]
[1766637371722,0.0113942,87825.0,87813.0,0.03]
[1766637372228,0.00017083,87829.0,87813.0,0.03]
[1766637373029,0.0113942,87826.0,87813.0,0.03]
[1766637373232,0.0113948,87821.0,87813.0,0.03]
[1766637373524,0.0113957,87814.0,87811.0,8.3e-07]
[1766637373832,0.0113963,87809.0,87792.0,0.0113985]
[1766637374129,0.0113963,87809.0,87792.0,0.03]
[1766637374526,0.01764,87813.0,87792.0,0.03]
[1766637374721,0.0113974,87801.0,87794.0,0.00017083]
[1766637374926,0.0113974,87801.0,87794.0,0.03017083]
[1766637376332,0.0113974,87801.0,87794.0,0.02604247]
[1766637376924,0.0113969,87805.0,87794.0,0.02]
[1766637379732,0.0113964,87809.0,87794.0,0.02]
[1766637381631,0.00017083,87811.0,87794.0,0.02]
[1766637381833,0.0113973,87802.0,87794.0,0.02]
[1766637382226,0.0113964,87809.0,87794.0,0.02]
[1766637382433,0.00017083,87811.0,87794.0,0.02]
[1766637382627,0.0113974,87801.0,87794.0,0.02]
[1766637385541,0.0113945,87823.0,87798.0,0.0113976]
[1766637385727,0.02479418,87822.0,87798.0,0.0413976]
[1766637386041,0.0113942,87826.0,87798.0,0.0413976]
[1766637386229,0.02479437,87825.0,87798.0,0.0413976]
[1766637386431,0.02479437,87824.0,87802.0,0.0113972]
[1766637386626,0.00017083,87820.0,87806.0,0.0113966]
[1766637386826,0.00017083,87820.0,87806.0,0.0413966]
[1766637387230,0.00017083,87820.0,87806.0,0.03]
[1766637390746,0.00384,87823.0,87806.0,0.03]
[1766637391749,0.00401083,87823.0,87806.0,0.03]
[1766637392952,0.00017083,87823.0,87806.0,0.03]
[1766637397250,0.00017083,87823.0,87806.0,0.0413966]
[1766637397452,0.00227706,87833.0,87814.0,0.0113955]
[1766637397751,0.03000959,87832.0,87814.0,0.03]
[1766637398053,0.02484959,87831.0,87814.0,0.03]
[1766637398262,0.02484959,87830.0,87814.0,0.03]
[1766637398460,0.02484959,87829.0,87814.0,0.03]
[1766637398657,0.02484959,87828.0,87814.0,0.03]
[1766637398860,0.00017083,87831.0,87814.0,0.03]
[1766637399161,0.02485265,87830.0,87814.0,0.03]
[1766637399459,0.02485265,87829.0,87814.0,0.03]
[1766637399666,0.02485265,87828.0,87814.0,0.03]
[1766637399858,0.00017083,87831.0,87814.0,0.03]
[1766637400053,0.02493397,87830.0,87814.0,0.03]
[1766637400255,0.02493397,87829.0,87814.0,0.03]
[1766637400460,0.00017083,87831.0,87814.0,0.03]
[1766637400661,0.02493598,87830.0,87814.0,0.03]
[1766637400860,0.02493598,87829.0,87814.0,0.03]
[1766637401060,0.0113936,87830.0,87814.0,0.03]
[1766637401266,0.02493637,87829.0,87814.0,0.03]
[1766637401565,0.02493637,87828.0,87814.0,0.03]
[1766637401867,0.00017083,87831.0,87814.0,0.03]
[1766637402068,0.02493769,87830.0,87814.0,0.03]
[1766637402266,0.02493769,87829.0,87814.0,0.03]
[1766637402466,0.02493769,87828.0,87814.0,0.03]
[1766637402662,0.00017083,87831.0,87814.0,0.03]
[1766637402865,0.02494002,87830.0,87814.0,0.03]
[1766637403065,0.02494002,87829.0,87814.0,0.03]
[1766637403370,0.02494002,87828.0,87814.0,0.03]
[1766637403569,0.01156433,87831.0,87814.0,0.03]
[1766637403772,0.02494069,87830.0,87814.0,0.03]
[1766637403966,0.02494069,87829.0,87814.0,0.03]
[1766637404164,0.02494069,87828.0,87814.0,0.03]
[1766637404367,0.01156433,87831.0,87814.0,0.03]
[1766637404568,0.02493915,87830.0,87814.0,0.03]
[1766637404869,0.02493915,87829.0,87814.0,0.03]
[1766637405068,0.01156433,87831.0,87814.0,0.03]
[1766637405270,0.02493908,87830.0,87814.0,0.03]
[1766637405470,0.02493908,87829.0,87814.0,0.03]
[1766637405669,0.01156433,87831.0,87814.0,0.03]
[1766637405972,0.0249394,87830.0,87814.0,0.03]
[1766637406174,0.0249394,87829.0,87814.0,0.03]
[1766637406367,0.02494052,87828.0,87814.0,0.03]
[1766637406572,0.01156433,87831.0,87814.0,0.03]
[1766637406775,0.0249405,87830.0,87814.0,0.03]
[1766637406975,0.0249405,87829.0,87814.0,0.03]
[1766637407164,0.0249405,87828.0,87814.0,0.03]
[1766637407359,0.01156433,87831.0,87814.0,0.03]
[1766637407568,0.02494156,87830.0,87814.0,0.03]
[1766637407759,0.02494156,87829.0,87814.0,0.03]
[1766637407965,0.02494156,87828.0,87814.0,0.03]
[1766637408165,0.02494156,87827.0,87814.0,0.03]
[1766637408365,0.01156433,87831.0,87814.0,0.03]
[1766637408565,0.02494278,87830.0,87814.0,0.03]
[1766637408866,0.02494278,87829.0,87814.0,0.03]
[1766637409070,0.02494278,87828.0,87814.0,0.03]
[1766637409268,0.02494278,87827.0,87814.0,0.03]
[1766637409472,0.02494278,87826.0,87814.0,0.03]
[1766637409675,0.01156433,87831.0,87814.0,0.03]
[1766637409874,0.0113938,87829.0,87814.0,0.03]
[1766637410075,0.02494496,87828.0,87814.0,0.03]
[1766637410273,0.02494496,87827.0,87814.0,0.03]
[1766637410474,0.02494496,87826.0,87814.0,0.03]
[1766637410671,0.01156433,87831.0,87814.0,0.03]
[1766637410874,0.02494769,87830.0,87814.0,0.03]
[1766637411073,0.02494769,87829.0,87814.0,0.03]
[1766637411374,0.02494769,87828.0,87814.0,0.03]
[1766637411574,0.02494769,87827.0,87814.0,0.03]
[1766637411775,0.02494769,87826.0,87814.0,0.03]
[1766637411977,0.01156433,87831.0,87814.0,0.03]
[1766637412279,0.02495092,87830.0,87814.0,0.03]
[1766637412471,0.02495092,87829.0,87814.0,0.03]
[1766637412672,0.02495092,87828.0,87814.0,0.03]
[1766637412872,0.02495092,87827.0,87814.0,0.03]
[1766637413077,0.02495092,87826.0,87814.0,0.03]
[1766637413276,0.01156433,87831.0,87814.0,0.03]
[1766637413477,0.02496282,87830.0,87814.0,0.03]
[1766637413676,0.02496282,87829.0,87814.0,0.03]
[1766637413980,0.02496282,87828.0,87814.0,0.03]
[1766637414273,0.02496282,87827.0,87814.0,0.03]
[1766637414478,0.02496282,87826.0,87814.0,0.03]
[1766637414679,0.02496282,87825.0,87814.0,0.03]
[1766637414880,0.01156433,87831.0,87814.0,0.03]
[1766637414881,0.02496282,87824.0,87814.0,0.03]
[1766637415081,0.02496282,87823.0,87814.0,0.03]
[1766637415271,0.02496282,87822.0,87814.0,0.03]
[1766637415472,0.02496282,87822.0,87807.0,0.04104]
[1766637415674,0.02496282,87822.0,87807.0,0.05104]
[1766637416077,0.02496282,87821.0,87807.0,0.05104]
[1766637416276,0.02496282,87820.0,87807.0,0.05104]
[1766637416578,0.02496282,87819.0,87807.0,0.05104]
[1766637416773,0.0113941,87826.0,87807.0,0.05104]
[1766637416972,0.02499102,87825.0,87807.0,0.05104]
[1766637417175,0.02499102,87824.0,87807.0,0.05104]
[1766637417373,0.02499102,87823.0,87807.0,0.05104]
[1766637417574,0.02499102,87822.0,87807.0,0.05104]
[1766637417776,0.02499102,87821.0,87807.0,0.05104]
[1766637417975,0.02499102,87820.0,87807.0,0.05104]
[1766637418177,0.02499102,87819.0,87807.0,0.01]
[1766637418579,0.0113951,87818.0,87807.0,0.01]
[1766637418778,0.02499102,87817.0,87803.0,8.3e-07]
[1766637418985,0.0113957,87814.0,87803.0,8.3e-07]
[1766637419491,0.0113952,87818.0,87803.0,8.3e-07]
[1766637419680,0.02498779,87817.0,87803.0,8.3e-07]
[1766637419872,0.02498779,87816.0,87803.0,8.3e-07]
[1766637420077,0.02498779,87815.0,87803.0,8.3e-07]
[1766637420279,0.0493945,87823.0,87803.0,8.3e-07]
[1766637420479,0.02498773,87822.0,87803.0,8.3e-07]
[1766637420688,0.02498773,87821.0,87803.0,8.3e-07]
[1766637420987,0.02498773,87820.0,87803.0,8.3e-07]
[1766637421189,0.02498773,87819.0,87803.0,8.3e-07]
[1766637421378,0.02498773,87818.0,87803.0,8.3e-07]
[1766637421577,0.02498773,87817.0,87803.0,8.3e-07]
[1766637421883,0.02498773,87816.0,87803.0,8.3e-07]
[1766637422082,0.02498773,87815.0,87803.0,8.3e-07]
[1766637422277,0.02498773,87814.0,87803.0,8.3e-07]
[1766637422487,0.0493945,87823.0,87803.0,8.3e-07]
[1766637422689,0.02498282,87822.0,87803.0,8.3e-07]
[1766637422887,0.0493945,87823.0,87803.0,8.3e-07]
[1766637422888,0.08202282,87821.0,87803.0,8.3e-07]
[1766637423087,0.02498282,87820.0,87803.0,8.3e-07]
[1766637423284,0.02498282,87819.0,87803.0,8.3e-07]
[1766637423478,0.02498282,87818.0,87803.0,8.3e-07]
[1766637423679,0.02498282,87817.0,87803.0,8.3e-07]
[1766637423888,0.05704,87821.0,87803.0,8.3e-07]
[1766637423889,0.02498282,87816.0,87803.0,8.3e-07]
[1766637424090,0.02498282,87815.0,87803.0,8.3e-07]
[1766637424289,0.05704,87821.0,87803.0,8.3e-07]
[1766637424490,0.02497924,87820.0,87803.0,8.3e-07]
[1766637424691,0.02497924,87819.0,87803.0,8.3e-07]
[1766637424892,0.02497924,87818.0,87803.0,8.3e-07]
[1766637425091,0.02497924,87817.0,87803.0,8.3e-07]
[1766637425291,0.02497924,87816.0,87803.0,8.3e-07]
[1766637425491,0.02497924,87815.0,87803.0,8.3e-07]
[1766637425694,0.04492,87818.0,87803.0,8.3e-07]
[1766637425893,0.02497806,87817.0,87803.0,8.3e-07]
[1766637426193,0.02497806,87816.0,87803.0,8.3e-07]
[1766637426493,0.04492,87818.0,87803.0,8.3e-07]
[1766637426792,0.02497693,87817.0,87803.0,8.3e-07]
[1766637426993,0.02497693,87816.0,87803.0,8.3e-07]
[1766637427195,0.04704,87818.0,87803.0,8.3e-07]
[1766637427394,0.02497789,87817.0,87803.0,8.3e-07]
[1766637427595,0.02497789,87816.0,87803.0,8.3e-07]
[1766637427795,0.0276,87818.0,87803.0,8.3e-07]
[1766637427997,0.02497693,87817.0,87803.0,8.3e-07]
[1766637428293,0.02497693,87816.0,87803.0,8.3e-07]
[1766637428494,0.0113948,87821.0,87803.0,8.3e-07]
[1766637428696,0.05257603,87820.0,87803.0,8.3e-07]
[1766637428897,0.02497603,87819.0,87803.0,8.3e-07]
[1766637429085,0.0276,87820.0,87803.0,8.3e-07]
[1766637429086,0.02497603,87818.0,87803.0,8.3e-07]
[1766637429286,0.02497603,87817.0,87803.0,8.3e-07]
[1766637429581,0.02497603,87816.0,87803.0,8.3e-07]
[1766637429798,0.02497603,87815.0,87803.0,8.3e-07]
[1766637429986,0.02497603,87814.0,87803.0,8.3e-07]
[1766637430186,0.02497603,87813.0,87803.0,8.3e-07]
[1766637430386,0.0276,87820.0,87803.0,8.3e-07]
[1766637430696,0.06782898,87819.0,87803.0,8.3e-07]
[1766637430896,0.02494898,87818.0,87803.0,8.3e-07]
[1766637431396,0.08198898,87818.0,87803.0,8.3e-07]
[1766637431690,0.02494898,87817.0,87803.0,8.3e-07]
[1766637431902,0.02494898,87816.0,87803.0,8.3e-07]
[1766637432096,0.0113948,87821.0,87803.0,8.3e-07]
[1766637432296,0.06382868,87820.0,87803.0,8.3e-07]
[1766637432495,0.02494868,87819.0,87803.0,8.3e-07]
[1766637432696,0.08198868,87818.0,87803.0,0.01139783]
[1766637432999,0.02494868,87817.0,87803.0,0.01139783]
[1766637433295,0.02494868,87816.0,87803.0,0.01139783]
[1766637433496,0.02494868,87815.0,87803.0,0.01139783]
[1766637433697,0.05704,87818.0,87803.0,0.01139783]
[1766637433897,0.0249482,87817.0,87803.0,0.01139783]
[1766637434097,0.0249482,87816.0,87803.0,0.01139783]
[1766637434295,0.05704,87818.0,87803.0,0.01139783]
[1766637434492,0.02494832,87817.0,87803.0,0.01139783]
[1766637434689,0.02494832,87816.0,87803.0,0.01139783]
[1766637434886,0.05704,87818.0,87803.0,0.01139783]
[1766637435099,0.02494834,87817.0,87803.0,0.01139783]
[1766637435296,0.02494834,87816.0,87803.0,0.01139783]
[1766637435591,0.05704,87818.0,87803.0,0.01139783]
[1766637435792,0.02494874,87817.0,87803.0,0.01139783]
[1766637435992,0.02494874,87816.0,87803.0,0.01139783]
[1766637436207,0.02494874,87815.0,87803.0,0.01139783]
[1766637436394,0.05704,87818.0,87803.0,0.01139783]
[1766637436594,0.02494933,87817.0,87803.0,0.01139783]
[1766637436802,0.02494933,87816.0,87803.0,0.01139783]
[1766637437101,0.02494933,87815.0,87803.0,0.01139783]
[1766637437302,0.05704,87818.0,87803.0,0.01139783]
[1766637437492,0.02495004,87817.0,87803.0,0.01139783]
[1766637437693,0.02495004,87816.0,87803.0,0.01139783]
[1766637437887,0.02495004,87815.0,87803.0,0.01139783]
[1766637438103,0.05704,87818.0,87805.0,0.0113967]
[1766637438403,0.02495021,87817.0,87805.0,0.0413967]
[1766637438603,0.02495021,87816.0,87805.0,0.0413967]
[1766637438901,0.05704,87818.0,87805.0,0.0413967]
[1766637439103,0.02495129,87817.0,87805.0,0.0413967]
[1766637439301,0.05704,87818.0,87805.0,0.03]
[1766637439502,0.0249528,87817.0,87805.0,0.03]
[1766637439703,0.05704,87818.0,87805.0,0.03]
[1766637439902,0.02495288,87817.0,87805.0,0.03]
[1766637440104,0.05704,87818.0,87805.0,0.03]
[1766637440403,0.02495286,87817.0,87805.0,0.0413968]
[1766637440600,0.05704,87818.0,87805.0,0.0413968]
[1766637440904,0.02495448,87817.0,87805.0,0.0413968]
[1766637441103,0.05704,87818.0,87805.0,0.0413968]
[1766637441307,0.02495448,87817.0,87805.0,0.0413968]
[1766637441606,0.05704,87818.0,87805.0,0.0413968]
[1766637441810,0.02495622,87817.0,87805.0,0.0413968]
[1766637442001,0.05704,87818.0,87805.0,0.03]
[1766637442206,0.02495613,87817.0,87805.0,0.03]
[1766637442403,0.05704,87818.0,87805.0,0.03]
[1766637442598,0.02495842,87817.0,87805.0,0.03]
[1766637442905,0.05704,87818.0,87805.0,0.03]
[1766637443105,0.02495739,87817.0,87805.0,0.03]
[1766637443304,0.05704,87818.0,87805.0,0.03]
[1766637443506,0.02495777,87817.0,87805.0,0.03]
[1766637443801,0.05704,87818.0,87805.0,0.03]
[1766637444005,0.02496012,87817.0,87805.0,0.03]
[1766637444202,0.05704,87818.0,87806.0,0.0113966]
[1766637444402,0.02495982,87817.0,87806.0,0.0413966]
[1766637444596,0.05704,87818.0,87806.0,0.0413966]
[1766637444796,0.02496276,87817.0,87806.0,0.0413966]
[1766637444997,0.05704,87818.0,87806.0,0.0413966]
[1766637445196,0.02496282,87817.0,87806.0,0.0413966]
[1766637445403,0.05704,87818.0,87806.0,0.03]
[1766637445605,0.0249627,87817.0,87806.0,0.03]
[1766637445805,0.05704,87818.0,87806.0,0.03]
[1766637446105,0.02496264,87817.0,87806.0,0.03]
[1766637446307,0.05704,87818.0,87806.0,0.03]
[1766637446600,0.02496008,87817.0,87806.0,0.03]
[1766637446805,0.05704,87818.0,87806.0,0.03]
[1766637447006,0.02495962,87817.0,87806.0,0.03]
[1766637447206,0.05704,87818.0,87806.0,0.03]
[1766637447406,0.02495958,87817.0,87806.0,0.03]
[1766637447603,0.02495958,87816.0,87806.0,0.03]
[1766637447804,0.05704,87818.0,87806.0,0.03]
[1766637448105,0.02496419,87817.0,87806.0,0.03]
[1766637448302,0.02496419,87816.0,87806.0,0.03]
[1766637448503,0.05704,87818.0,87806.0,0.03]
[1766637448704,0.02496595,87817.0,87806.0,0.03]
[1766637448905,0.02496595,87816.0,87806.0,0.03]
[1766637449093,0.05704,87818.0,87806.0,0.03]
[1766637449294,0.02496595,87817.0,87806.0,0.03]
[1766637449493,0.02496595,87816.0,87806.0,0.03]
[1766637449797,0.02496595,87815.0,87806.0,0.03]
[1766637449995,0.05704,87818.0,87806.0,0.03]
[1766637450207,0.02496594,87817.0,87806.0,0.03]
[1766637450508,0.02496594,87816.0,87806.0,0.03]
[1766637450705,0.02496594,87815.0,87806.0,0.03]
[1766637450906,0.05704,87818.0,87806.0,0.03]
[1766637451109,0.02496583,87817.0,87806.0,0.03]
[1766637451312,0.02496583,87816.0,87806.0,0.03]
[1766637451514,0.02496583,87815.0,87806.0,0.03]
[1766637451715,0.05704,87818.0,87806.0,0.03]
[1766637451919,0.02496581,87817.0,87806.0,0.03]
[1766637452102,0.02496581,87816.0,87806.0,0.03]
[1766637452302,0.02496581,87815.0,87806.0,0.03]
[1766637452613,0.03936,87818.0,87806.0,0.03]
[1766637452803,0.02496593,87817.0,87806.0,0.03]
[1766637453004,0.02496593,87816.0,87806.0,0.03]
[1766637453204,0.02496593,87815.0,87807.0,0.0113965]
[1766637453404,0.03936,87818.0,87807.0,0.0413965]
[1766637453605,0.02496602,87817.0,87807.0,0.03]
[1766637453806,0.02496602,87816.0,87807.0,0.03]
[1766637454013,0.02496602,87815.0,87807.0,0.03]
[1766637454198,0.03936,87818.0,87807.0,0.03]
[1766637454402,0.02496602,87817.0,87807.0,0.03]
[1766637454599,0.02496602,87816.0,87807.0,0.03]
[1766637454802,0.02496602,87815.0,87807.0,0.03]
[1766637455002,0.03936,87818.0,87807.0,0.03]
[1766637455200,0.02496525,87817.0,87807.0,0.03]
[1766637455403,0.02496525,87816.0,87807.0,0.03]
[1766637455604,0.02496525,87815.0,87807.0,0.03]
[1766637455800,0.03936,87818.0,87807.0,0.03]
[1766637456008,0.02496533,87817.0,87807.0,0.03]
[1766637456207,0.02496533,87816.0,87807.0,0.03]
[1766637456407,0.02496533,87815.0,87807.0,0.03]
[1766637456614,0.03936,87818.0,87807.0,0.03]
[1766637456818,0.02496528,87817.0,87807.0,0.03]
[1766637457018,0.02496528,87816.0,87807.0,0.03]
[1766637457217,0.02496528,87815.0,87807.0,0.03]
[1766637457418,0.03936,87818.0,87807.0,0.03]
[1766637457605,0.02496527,87817.0,87807.0,0.03]
[1766637457806,0.02496527,87816.0,87807.0,0.03]
[1766637458013,0.03936,87818.0,87807.0,0.03]
[1766637460524,0.04096127,87826.0,87807.0,0.03]
[1766637460819,0.01424,87825.0,87807.0,0.03]
[1766637461020,0.04108,87824.0,87807.0,0.03]
[1766637465426,0.04108,87824.0,87808.0,0.0113964]
[1766637465626,0.04108,87824.0,87808.0,0.0413964]
[1766637465826,0.04108,87824.0,87808.0,0.03]
[1766637468823,0.04096127,87826.0,87808.0,0.03]
[1766637469029,0.05296,87825.0,87808.0,0.0413963]
[1766637469435,0.05296,87825.0,87808.0,0.03]
[1766637469932,0.0247985,87824.0,87808.0,0.03]
[1766637470127,0.0247985,87823.0,87808.0,0.03]
[1766637470429,0.0247985,87822.0,87808.0,0.03]
[1766637470729,0.0247985,87821.0,87808.0,0.03]
[1766637470930,0.0247985,87820.0,87808.0,0.03]
[1766637471133,0.0247985,87819.0,87808.0,0.03]
[1766637471328,0.0247985,87818.0,87808.0,0.03]
[1766637471537,0.0643543,87825.0,87808.0,0.03]
[1766637471721,0.02479632,87824.0,87808.0,0.03]
[1766637472034,0.02479632,87823.0,87808.0,0.03]
[1766637472231,0.02479632,87822.0,87808.0,0.03]
[1766637472437,0.02479632,87821.0,87808.0,0.03]
[1766637472622,0.02479632,87820.0,87808.0,0.03]
[1766637472936,0.02479632,87819.0,87808.0,0.03]
[1766637473230,0.02479632,87818.0,87808.0,0.03]
[1766637473536,0.02479632,87817.0,87808.0,0.03]
[1766637473832,0.02479632,87816.0,87808.0,0.03]
[1766637474032,0.05296,87825.0,87808.0,0.03]
[1766637474237,0.02479492,87824.0,87808.0,0.03]
[1766637474423,0.02479492,87823.0,87808.0,0.03]
[1766637474625,0.02479492,87822.0,87808.0,0.03]
[1766637474825,0.02479492,87821.0,87808.0,0.03]
[1766637475025,0.02479492,87820.0,87808.0,0.03]
[1766637475225,0.02479492,87819.0,87808.0,0.03]
[1766637475429,0.02479492,87818.0,87808.0,0.03]
[1766637475631,0.02479492,87817.0,87808.0,0.03]
[1766637475834,0.02479492,87816.0,87808.0,0.03]
[1766637476035,0.05296,87825.0,87808.0,0.03]
[1766637476227,0.02479396,87824.0,87808.0,0.03]
[1766637476422,0.02479396,87823.0,87808.0,0.03]
[1766637476623,0.02479396,87822.0,87808.0,0.03]
[1766637476827,0.02479396,87821.0,87808.0,0.03]
[1766637477123,0.02479396,87820.0,87808.0,0.03]
[1766637477323,0.02479396,87819.0,87808.0,0.03]
[1766637477628,0.02479396,87818.0,87808.0,0.03]
[1766637477831,0.02479396,87817.0,87808.0,0.03]
[1766637478022,0.02479396,87816.0,87808.0,0.03]
[1766637478223,0.02479396,87815.0,87808.0,0.03]
[1766637478423,0.0113947,87822.0,87808.0,0.03]
[1766637478624,0.02479315,87821.0,87808.0,0.03]
[1766637478839,0.02479315,87820.0,87808.0,0.03]
[1766637479034,0.02479315,87819.0,87808.0,0.03]
[1766637479236,0.02479315,87818.0,87808.0,0.03]
[1766637479535,0.02479315,87817.0,87808.0,0.03]
[1766637479727,0.02479315,87816.0,87808.0,0.03]
[1766637479929,0.02479315,87815.0,87808.0,0.03]
[1766637480128,0.05296,87825.0,87808.0,0.03]
[1766637480324,0.02479317,87824.0,87808.0,0.03]
[1766637480642,0.02479317,87823.0,87808.0,0.03]
[1766637480830,0.02479317,87822.0,87808.0,0.03]
[1766637481130,0.02479317,87821.0,87808.0,0.03]
[1766637481330,0.02479317,87820.0,87808.0,0.03]
[1766637481530,0.02479317,87819.0,87808.0,0.03]
[1766637481825,0.02479317,87818.0,87808.0,0.03]
[1766637482139,0.05704,87824.0,87808.0,0.03]
[1766637482339,0.02479324,87823.0,87808.0,0.03]
[1766637482638,0.02479324,87822.0,87808.0,0.03]
[1766637482839,0.02479324,87821.0,87808.0,0.03]
[1766637483041,0.02479324,87820.0,87809.0,0.0113963]
[1766637483338,0.02479324,87819.0,87809.0,0.03]
[1766637483532,0.02479324,87818.0,87809.0,0.03]
[1766637483732,0.05044,87824.0,87809.0,0.03]
[1766637483933,0.02479314,87823.0,87809.0,0.03]
[1766637484139,0.02479314,87822.0,87809.0,0.03]
[1766637484335,0.02479314,87821.0,87809.0,0.03]
[1766637484533,0.02479314,87820.0,87809.0,0.03]
[1766637484735,0.02479314,87819.0,87809.0,0.03]
[1766637484934,0.02479314,87818.0,87809.0,0.03]
[1766637485139,0.05044,87824.0,87809.0,0.03]
[1766637485340,0.02479333,87823.0,87809.0,0.03]
[1766637485534,0.02479333,87822.0,87809.0,0.03]
[1766637485731,0.02479333,87821.0,87809.0,0.03]
[1766637485932,0.02479333,87820.0,87809.0,0.03]
[1766637486233,0.02479333,87819.0,87809.0,0.03]
[1766637486432,0.02479333,87818.0,87809.0,0.03]
[1766637486731,0.05044,87824.0,87809.0,0.03]
[1766637486936,0.02479362,87823.0,87809.0,0.03]
[1766637487245,0.02479362,87822.0,87809.0,0.03]
[1766637487430,0.02479362,87821.0,87809.0,0.03]
[1766637487630,0.02479362,87820.0,87809.0,0.03]
[1766637487931,0.02479362,87819.0,87809.0,0.03]
[1766637488131,0.02479362,87818.0,87809.0,0.03]
[1766637488336,0.05044,87824.0,87809.0,0.03]
[1766637488537,0.02479425,87823.0,87809.0,0.03]
[1766637488736,0.02479425,87822.0,87809.0,0.03]
[1766637488934,0.02479425,87821.0,87809.0,0.03]
[1766637489135,0.02479425,87820.0,87809.0,0.03]
[1766637489339,0.02479425,87819.0,87809.0,0.03]
[1766637489542,0.02479425,87818.0,87809.0,0.03]
[1766637489842,0.057,87826.0,87809.0,0.03]
[1766637490043,0.02478641,87825.0,87809.0,0.03]
[1766637490237,0.02478641,87824.0,87809.0,0.03]
[1766637490542,0.02478641,87823.0,87809.0,0.03]
[1766637490738,0.02478641,87822.0,87809.0,0.03]
[1766637490938,0.02478641,87821.0,87809.0,0.03]
[1766637491239,0.02478641,87820.0,87809.0,0.03]
[1766637491440,0.02478641,87819.0,87809.0,0.03]
[1766637491632,0.02478641,87818.0,87809.0,0.03]
[1766637491834,0.02478641,87817.0,87809.0,0.03]
[1766637492032,0.0113945,87823.0,87809.0,0.03]
[1766637492033,0.02478641,87816.0,87809.0,0.03]
[1766637492339,0.0113945,87823.0,87809.0,0.03]
[1766637492539,0.02478764,87822.0,87809.0,0.03]
[1766637492829,0.02478764,87821.0,87809.0,0.03]
[1766637493029,0.02478764,87820.0,87809.0,0.03]
[1766637493229,0.02478764,87819.0,87809.0,0.03]
[1766637493432,0.02478764,87818.0,87809.0,0.03]
[1766637493633,0.02478764,87817.0,87809.0,0.03]
[1766637493832,0.0683941,87826.0,87809.0,0.03]
[1766637494032,0.02478803,87825.0,87809.0,0.03]
[1766637494241,0.02478803,87824.0,87809.0,0.03]
[1766637494443,0.02478803,87823.0,87809.0,0.03]
[1766637494742,0.02478803,87822.0,87809.0,0.03]
[1766637494941,0.02478803,87821.0,87809.0,0.03]
[1766637495144,0.02478803,87820.0,87809.0,0.03]
[1766637495442,0.02478803,87819.0,87809.0,0.03]
[1766637495644,0.02478803,87818.0,87809.0,0.03]
[1766637495839,0.057,87826.0,87809.0,0.03]
[1766637495840,0.02478803,87817.0,87809.0,0.03]
[1766637496138,0.057,87826.0,87809.0,0.03]
[1766637496340,0.02478909,87825.0,87809.0,0.03]
[1766637496543,0.02478909,87824.0,87809.0,0.03]
[1766637496742,0.02478909,87823.0,87809.0,0.03]
[1766637496942,0.02478909,87822.0,87809.0,0.03]
[1766637497142,0.02478909,87821.0,87809.0,0.03]
[1766637497343,0.02478909,87820.0,87809.0,0.03]
[1766637497548,0.02478909,87819.0,87809.0,0.03]
[1766637497748,0.02478909,87818.0,87809.0,0.03]
[1766637498044,0.02478909,87817.0,87809.0,0.03]